fUSD/lending_fUSD_20241107
["ID","MTS","AMOUNT","RATE_DAILY","PERIOD"]
[341552796,1730975202161,-250.0,0.00021,2]
[341552797,1730975202182,-44.26117202,0.00023,2]
[341552799,1730975284539,70633.9491414,0.00015,2]
[341552800,1730975307863,3414.84799108,0.0002,2]
[341552806,1730975348386,-26427.90598,0.00022,2]
[341552810,1730975352129,-1136.01684118,0.00022,2]
[341552811,1730975353105,-27897.35522,0.00022,2]
[341552812,1730975354509,-81901.47107759,0.00022,2]
[341552813,1730975354529,-262.78646843,0.000229,2]
[341552814,1730975354549,-255.73882798,0.00023,2]
[341552815,1730975354569,-1337.15,0.00023922,2]
[341552816,1730975354589,-201.0,0.0002459,2]
[341552817,1730975354611,-500.0,0.00024932,2]
[341552818,1730975354632,-350.0,0.00025,2]
[341552819,1730975354653,-2450.0,0.000254,3]
[341552820,1730975354673,-201.0,0.0002556,2]
[341552821,1730975354696,-260.0,0.000259,10]
[341552822,1730975354716,-201.0,0.0002653,2]
[341552823,1730975354737,-400.0,0.00027,2]
[341552824,1730975354758,-330.0,0.00027,120]
[341552825,1730975354779,-1899.81,0.0002712,2]
[341552826,1730975355093,-1044.73,0.00027254,2]
[341552827,1730975355114,-1223.0081334,0.000274,7]
[341552828,1730975355138,-201.0,0.000275,2]
[341552829,1730975355161,-1899.81,0.00027556,2]
[341552833,1730975394253,200.0,0.00023,2]
[341552834,1730975394779,200.0,0.00023,2]
[341552835,1730975396415,200.0,0.00023,2]
[341552848,1730975431546,-973.51222965,0.00027992,2]
[341552849,1730975431558,-926.29777035,0.00027992,2]
[341552850,1730975431568,-500.0,0.000284,120]
[341552851,1730975431577,-1899.81,0.00028428,2]
[341552852,1730975431587,-201.0,0.0002846,2]
[341552853,1730975431597,-618.85,0.00028524,10]
[341552854,1730975431606,-1493.97433621,0.00028534,2]
[341552855,1730975431622,-17014.23697838,0.00028534,2]
[341552856,1730975431724,-1600.0,0.00028534,2]
[341552857,1730975431759,-1484.6,0.00028534,2]
[341552869,1730975437746,-1318.21119884,0.00028534,2]
[341552870,1730975437878,-98470.73748657,0.00028534,2]
[341552871,1730975437888,-682.99,0.00028803,2]
[341552872,1730975437897,-200.0,0.00028838,7]
[341552873,1730975437907,-154.25,0.00028843,2]
[341552874,1730975437917,-150.0,0.00028847,2]
[341552875,1730975437926,-1899.81,0.00028863,2]
[341552876,1730975437938,-250.0,0.00028867,2]
[341552877,1730975437947,-229.62,0.00028868,30]
[341552878,1730975437957,-153.38,0.0002889,120]
[341552879,1730975437966,-344.04,0.00028898,2]
[341552880,1730975437976,-3804.71082634,0.000289,2]
[341552881,1730975437986,-250.0,0.00028915,2]
[341552882,1730975437995,-23900.0,0.00028966,2]
[341552883,1730975438005,-450.0,0.00029,2]
[341552884,1730975438017,-242.5,0.00029172,120]
[341552885,1730975438028,-258.24,0.00029172,2]
[341552886,1730975438037,-1899.81,0.00029299,2]
[341552888,1730975438046,-201.0,0.0002943,2]
[341552890,1730975438056,-356.5,0.00029506,2]
[341552892,1730975438065,-1044.73,0.00029518,2]
[341552894,1730975438075,-300.0,0.000296,2]
[341552896,1730975438085,-3804.71082631,0.00029689,15]
[341552898,1730975438094,-1899.81,0.00029735,2]
[341552900,1730975438104,-703.343904,0.00029892,2]
[341552901,1730975438113,-8190.1456212,0.00029894,2]
[341552902,1730975438125,-48917.5443788,0.00029894,2]
[341552903,1730975438135,-169.73,0.00029982,2]
[341552904,1730975438144,-500.0,0.0003,120]
[341552905,1730975438155,-424.08495,0.0003,120]
[341552906,1730975438164,-10455.99703961,0.0003,2]
[341552907,1730975438174,-8094.22,0.0003001,2]
[341552908,1730975438183,-167.81,0.00030047,2]
[341552909,1730975438192,-241.422168,0.00030136,4]
[341552910,1730975438201,-235.327924,0.00030136,4]
[341552911,1730975438211,-157.950213,0.00030136,4]
[341552912,1730975438220,-153.1758,0.00030136,4]
[341552913,1730975438229,-214.70817661,0.00030137,60]
[341552914,1730975438239,-1899.81,0.00030171,2]
[341552915,1730975438248,-201.03,0.00030285,2]
[341552916,1730975438258,-344.04,0.00030343,2]
[341552917,1730975438267,-201.0,0.000304,2]
[341552918,1730975438278,-3804.71082631,0.00030478,15]
[341552919,1730975438295,-158.25,0.00030548,2]
[341552920,1730975438311,-79.77467584,0.00030671,2]
[341552922,1730975439438,-276.72532416,0.00030671,2]
[341552923,1730975439448,-233.26772407,0.00031,2]
[341552924,1730975439529,-266.73227593,0.00031,2]
[341552925,1730975439539,-1510.99692407,0.0003121,2]
[341552930,1730975442669,-998.62378509,0.0003121,2]
[341552931,1730975442679,-500.0,0.00031266,2]
[341552932,1730975442689,-500.0,0.00031266,2]
[341552933,1730975442699,-500.0,0.00031266,2]
[341552934,1730975442709,-500.0,0.00031266,2]
[341552935,1730975442718,-500.0,0.00031266,2]
[341552936,1730975442728,-500.0,0.00031266,2]
[341552937,1730975442737,-500.0,0.00031266,2]
[341552938,1730975442747,-500.0,0.00031266,2]
[341552939,1730975442757,-2387.61049092,0.00031267,15]
[341552945,1730975445470,-1417.10033539,0.00031267,15]
[341552946,1730975445480,-824.5558,0.0003133,2]
[341552947,1730975445490,-201.0,0.0003137,2]
[341552948,1730975445500,-500.0,0.000314,120]
[341552949,1730975445509,-12071.50669985,0.0003143,2]
[341552950,1730975445533,-2512.05245654,0.0003143,2]
[341552951,1730975445545,-748.89,0.0003143,2]
[341552952,1730975445586,-20885.7813912,0.0003143,2]
[341552953,1730975446047,-1113.70970627,0.0003143,2]
[341552954,1730975448272,158.55,0.00015342,2]
[341552955,1730975448598,204.159174,0.00018123,2]
[341552956,1730975464192,164.0,7.8e-05,2]
[341552957,1730975581491,150.0,0.00019725,2]
[341552958,1730975581518,150.0,0.00019725,2]
[341552959,1730975582255,150.0,0.00021484,2]
[341552960,1730975582281,150.0,0.00021484,2]
[341552961,1730975582307,120.0,0.00021484,2]
[341552962,1730975583112,30.0,0.00023,2]
[341552963,1730975583137,150.0,0.00023,2]
[341552964,1730975583164,28.9488045,0.00023,2]
[341552965,1730975673343,121.0511955,0.00023031,2]
[341552966,1730975673364,28.9488045,0.00023031,2]
[341552970,1730975821352,239.26239434,0.00019725,2]
[341552971,1730975821382,60.73760566,0.00019725,2]
[341552972,1730975822129,420.0,0.00021484,2]
[341552973,1730975837851,555.0,0.0002662,15]
[341552984,1730975941301,300.0,0.00019725,2]
[341552985,1730975942099,420.0,0.00021484,2]
[341552987,1730976012753,160.05,0.00015342,2]
[341552989,1730976061427,300.0,0.00019725,2]
[341552990,1730976062166,303.0,0.00021484,2]
[341552992,1730976262674,-1602.1,0.00029849,120]
[341552993,1730976262701,-606.0,0.00030054,120]
[341552994,1730976262724,-218.13,0.00030131,30]
[341552995,1730976262748,-193.53,0.0003076,120]
[341552996,1730976262775,-200.0,0.00031777,120]
[341552997,1730976262804,-1000.0,0.000324,120]
[341552998,1730976262830,-218.13,0.00032715,120]
[341552999,1730976262857,-242.5,0.00032819,120]
[341553000,1730976262883,-500.0,0.00032826,120]
[341553001,1730976262908,-1237.0,0.000329,30]
[341553002,1730976262932,-500.0,0.00032993,120]
[341553003,1730976263245,-150.0,0.00033,120]
[341553004,1730976263270,-200.0,0.00033101,120]
[341553005,1730976263301,-400.0,0.000334,120]
[341553006,1730976263326,-500.0,0.0003361,30]
[341553007,1730976263350,-500.0,0.0003361,30]
[341553008,1730976263373,-500.0,0.0003361,30]
[341553009,1730976263397,-500.0,0.0003361,30]
[341553010,1730976263421,-500.0,0.0003361,30]
[341553011,1730976263445,-500.0,0.0003361,30]
[341553012,1730976263469,-500.0,0.0003361,30]
[341553013,1730976263494,-500.0,0.0003361,30]
[341553014,1730976263518,-500.0,0.0003361,30]
[341553015,1730976263544,-606.0,0.00033811,120]
[341553016,1730976263570,-1000.0,0.00034,120]
[341553017,1730976263594,-503.792485,0.00034426,120]
[341553018,1730976263617,-500.0,0.00034426,120]
[341553019,1730976263641,-500.0,0.00034426,120]
[341553020,1730976263667,-200.0,0.00034426,120]
[341553021,1730976263698,-724.44463484,0.00034849,120]
[341553022,1730976263732,-900.0,0.00035,36]
[341553023,1730976263755,-151.0,0.00035014,120]
[341553024,1730976263780,-312.5,0.00035264,30]
[341553025,1730976263804,-218.13,0.00035299,120]
[341553026,1730976263829,-1330.622,0.00035308,41]
[341553027,1730976263852,-500.0,0.00035328,60]
[341553028,1730976263879,-400.0,0.000354,120]
[341553029,1730976263905,-2756.74,0.00035616,120]
[341553030,1730976263938,-2263.36,0.000358,30]
[341553031,1730976263965,-490.74853994,0.00036,37]
[341553032,1730976263989,-500.0,0.00036,120]
[341553033,1730976264015,-250.0,0.00036,30]
[341553034,1730976264045,-208.0,0.0003612,30]
[341553035,1730976264069,-2756.74,0.00036301,120]
[341553036,1730976264092,-700.0,0.00036424,60]
[341553037,1730976264115,-1500.0,0.00036424,60]
[341553038,1730976264138,-500.0,0.00036424,60]
[341553039,1730976264166,-242.5,0.00036465,120]
[341553040,1730976264189,-2263.36,0.000365,30]
[341553041,1730976264212,-700.0,0.00036972,60]
[341553042,1730976264236,-1500.0,0.00036972,60]
[341553043,1730976264262,-2756.74,0.00036986,120]
[341553044,1730976264287,-1800.0,0.00037,38]
[341553045,1730976264311,-1237.0,0.00037,30]
[341553046,1730976264334,-181228.86102178,0.00037,120]
[341553047,1730976264358,-208.0,0.0003709,30]
[341553048,1730976264382,-2263.36,0.000374,30]
[341553049,1730976264405,-700.0,0.0003752,60]
[341553050,1730976264428,-1500.0,0.0003752,60]
[341553051,1730976264456,-900.0,0.0003752,60]
[341553052,1730976264479,-500.0,0.0003752,60]
[341553053,1730976264505,-606.0,0.00037567,120]
[341553054,1730976264530,-2756.74,0.00037671,120]
[341553055,1730976264555,-400.0,0.000378,120]
[341553056,1730976264581,-565.8,0.000378,31]
[341553057,1730976264607,-565.8,0.000378,31]
[341553058,1730976264632,-565.8,0.000378,31]
[341553059,1730976264657,-565.8,0.000378,31]
[341553060,1730976264683,-565.8,0.000378,31]
[341553061,1730976264709,-565.8,0.000378,31]
[341553062,1730976264734,-565.8,0.000378,31]
[341553063,1730976264760,-565.8,0.000378,31]
[341553064,1730976264788,-565.8,0.000378,31]
[341553065,1730976264813,-565.8,0.000378,31]
[341553066,1730976264837,-565.8,0.000378,31]
[341553067,1730976264861,-565.8,0.000378,31]
[341553068,1730976264889,-218.13,0.00037883,120]
[341553069,1730976264913,-2700.0,0.00038,39]
[341553070,1730976264936,-600.91088959,0.00038,120]
[341553071,1730976264963,-341.14278254,0.00038,120]
[341553072,1730976264989,-1000.0,0.00038,120]
[341553073,1730976265013,-1000.0,0.00038,120]
[341553074,1730976265035,-1000.0,0.00038,120]
[341553075,1730976265058,-973.72493069,0.00038,120]
[341553076,1730976265081,-1753.60801835,0.00038,120]
[341553077,1730976265105,-510.45103612,0.00038,120]
[341553078,1730976265129,-500.0,0.00038,120]
[341553079,1730976265152,-60481.45643807,0.00038,120]
[341553080,1730976265180,-1469.0,0.00038,60]
[341553081,1730976265202,-250.0,0.00038,30]
[341553082,1730976265228,-208.0,0.0003805,30]
[341553083,1730976265255,-700.0,0.00038068,60]
[341553084,1730976265277,-1500.0,0.00038068,60]
[341553085,1730976265300,-900.0,0.00038068,60]
[341553086,1730976265324,-2263.36,0.000381,30]
[341553087,1730976265347,-600.0,0.000382,120]
[341553088,1730976265371,-500.0,0.00038319,120]
[341553089,1730976265394,-500.0,0.00038319,120]
[341553090,1730976265416,-500.0,0.00038319,120]
[341553091,1730976265438,-584.0,0.00038319,120]
[341553092,1730976265461,-150.0,0.00038355,30]
[341553093,1730976265486,-2756.74,0.00038356,120]
[341553094,1730976265511,-150.5,0.0003837,120]
[341553095,1730976265534,-255.0,0.0003837,120]
[341553096,1730976265558,-150.5,0.0003837,120]
[341553097,1730976265580,-299.45,0.0003837,120]
[341553098,1730976265603,-420.0,0.0003837,30]
[341553099,1730976265626,-150.5,0.0003838,120]
[341553100,1730976265649,-255.0,0.0003838,120]
[341553101,1730976265671,-150.5,0.0003838,120]
[341553102,1730976265697,-150.5,0.0003838,120]
[341553103,1730976265719,-420.0,0.0003838,30]
[341553104,1730976265916,-150.5,0.0003839,120]
[341553105,1730976265944,-255.0,0.0003839,120]
[341553106,1730976265969,-157.23,0.0003839,120]
[341553107,1730976265993,-157.5,0.0003839,120]
[341553108,1730976266018,-150.5,0.0003839,120]
[341553109,1730976266045,-150.5,0.0003839,120]
[341553110,1730976266070,-154.82,0.0003839,120]
[341553111,1730976266094,-150.5,0.0003839,120]
[341553112,1730976266116,-420.0,0.0003839,30]
[341553113,1730976266140,-150.0,0.00038492,30]
[341553114,1730976266167,-962.60043893,0.000385,120]
[341553115,1730976266190,-900.0,0.00038616,60]
[341553116,1730976266213,-500.0,0.00038616,60]
[341553117,1730976266237,-150.0,0.00038629,30]
[341553118,1730976266261,-200.0,0.00038704,120]
[341553119,1730976266285,-150.0,0.00038766,30]
[341553120,1730976266310,-2263.36,0.000388,30]
[341553121,1730976266336,-150.0,0.00038903,30]
[341553122,1730976266360,-420.0,0.0003897,30]
[341553123,1730976266384,-420.0,0.0003898,30]
[341553124,1730976266409,-420.0,0.0003899,30]
[341553125,1730976266433,-1800.0,0.00039,40]
[341553126,1730976266457,-2065.71140419,0.00039,120]
[341553127,1730976266481,-596.71608832,0.00039,120]
[341553128,1730976266504,-243.69899177,0.00039,120]
[341553129,1730976266529,-208.0,0.0003901,30]
[341553130,1730976266553,-150.0,0.0003904,30]
[341553131,1730976266577,-2756.74,0.00039041,120]
[341553132,1730976266600,-500.0,0.00039054,120]
[341553133,1730976266623,-420.0,0.0003908,30]
[341553134,1730976266645,-420.0,0.0003909,30]
[341553135,1730976266669,-700.0,0.00039164,60]
[341553136,1730976266694,-900.0,0.00039164,60]
[341553137,1730976266717,-1500.0,0.00039164,60]
[341553138,1730976266741,-150.0,0.00039177,30]
[341553139,1730976266765,-314.26,0.0003925,35]
[341553140,1730976266788,-1003.44,0.0003929,36]
[341553141,1730976266813,-565.8,0.000393,31]
[341553142,1730976266838,-565.8,0.000393,31]
[341553143,1730976266863,-565.8,0.000393,31]
[341553144,1730976266888,-565.8,0.000393,31]
[341553145,1730976266913,-565.8,0.000393,31]
[341553146,1730976266939,-565.8,0.000393,31]
[341553147,1730976266965,-565.8,0.000393,31]
[341553148,1730976266991,-565.8,0.000393,31]
[341553149,1730976267017,-565.8,0.000393,31]
[341553150,1730976267041,-565.8,0.000393,31]
[341553151,1730976267066,-565.8,0.000393,31]
[341553152,1730976267092,-565.8,0.000393,31]
[341553153,1730976267118,-565.8,0.000393,31]
[341553154,1730976267144,-565.8,0.000393,31]
[341553155,1730976267170,-565.8,0.000393,31]
[341553156,1730976267198,-565.8,0.000393,31]
[341553157,1730976267224,-565.8,0.000393,31]
[341553158,1730976267258,-565.8,0.000393,31]
[341553159,1730976267282,-565.8,0.000393,31]
[341553160,1730976267307,-565.8,0.000393,31]
[341553161,1730976267332,-565.8,0.000393,31]
[341553162,1730976267357,-565.8,0.000393,31]
[341553163,1730976267382,-565.8,0.000393,31]
[341553164,1730976267408,-565.8,0.000393,31]
[341553165,1730976267433,-150.0,0.00039314,30]
[341553166,1730976267457,-150.0,0.00039451,30]
[341553167,1730976267481,-2263.36,0.000395,30]
[341553168,1730976267506,-150.0,0.00039588,30]
[341553169,1730976267530,-440.026414,0.00039592,120]
[341553170,1730976267557,-160.396,0.00039667,120]
[341553171,1730976267581,-255.0,0.0003968,120]
[341553172,1730976267604,-199.22,0.0003969,120]
[341553173,1730976267628,-281.93,0.0003969,120]
[341553174,1730976267652,-255.0,0.0003969,120]
[341553175,1730976267678,-900.0,0.00039712,60]
[341553176,1730976267703,-500.0,0.00039712,60]
[341553177,1730976267727,-150.0,0.00039725,30]
[341553178,1730976267752,-2756.74,0.00039726,120]
[341553179,1730976267775,-241.5925737,0.00039726,30]
[341553180,1730976267799,-1000.0,0.000398,120]
[341553181,1730976267823,-150.0,0.00039862,30]
[341553182,1730976267846,-150.5,0.0003987,120]
[341553183,1730976267869,-255.0,0.0003987,120]
[341553184,1730976267892,-1000.0,0.0003988,120]
[341553185,1730976267915,-150.5,0.0003988,120]
[341553186,1730976267939,-255.0,0.0003988,120]
[341553187,1730976267978,-150.5,0.0003989,120]
[341553188,1730976268002,-255.0,0.0003989,120]
[341553189,1730976268026,-241.5925737,0.00039918,30]
[341553190,1730976268049,-208.0,0.0003997,30]
[341553191,1730976268074,-262.86813294,0.0003999,120]
[341553192,1730976268099,-150.0,0.00039999,30]
[341553193,1730976268122,-446.89685123,0.00039999,31]
[341553194,1730976268145,-348.20098128,0.00039999,31]
[341553195,1730976268171,-312.9145001,0.00039999,31]
[341553196,1730976268197,-500.0,0.00039999,31]
[341553197,1730976268221,-500.0,0.00039999,31]
[341553198,1730976268250,-500.0,0.00039999,31]
[341553199,1730976268274,-500.0,0.00039999,31]
[341553200,1730976268298,-500.0,0.00039999,31]
[341553201,1730976268322,-500.0,0.00039999,31]
[341553202,1730976268346,-500.0,0.00039999,31]
[341553203,1730976268373,-500.0,0.00039999,31]
[341553204,1730976268398,-500.0,0.00039999,31]
[341553205,1730976268424,-500.0,0.00039999,31]
[341553206,1730976268454,-500.0,0.00039999,31]
[341553207,1730976268665,-500.0,0.00039999,31]
[341553208,1730976268691,-500.0,0.00039999,31]
[341553209,1730976268717,-500.0,0.00039999,31]
[341553210,1730976268743,-500.0,0.00039999,31]
[341553211,1730976268768,-500.0,0.00039999,31]
[341553212,1730976268794,-500.0,0.00039999,31]
[341553213,1730976268820,-500.0,0.00039999,31]
[341553214,1730976268845,-500.0,0.00039999,31]
[341553215,1730976268870,-500.0,0.00039999,31]
[341553216,1730976268895,-500.0,0.00039999,31]
[341553217,1730976268919,-500.0,0.00039999,31]
[341553218,1730976268947,-500.0,0.00039999,31]
[341553219,1730976268972,-500.0,0.00039999,31]
[341553220,1730976268998,-163.98170993,0.00039999,31]
[341553221,1730976269022,-500.0,0.00039999,31]
[341553222,1730976269047,-500.0,0.00039999,31]
[341553223,1730976269071,-500.0,0.00039999,31]
[341553224,1730976269096,-500.0,0.00039999,31]
[341553225,1730976269121,-500.0,0.00039999,31]
[341553226,1730976269145,-500.0,0.00039999,31]
[341553227,1730976269173,-500.0,0.00039999,31]
[341553228,1730976269198,-500.0,0.00039999,31]
[341553229,1730976269223,-500.0,0.00039999,31]
[341553230,1730976269248,-500.0,0.00039999,31]
[341553231,1730976269275,-500.0,0.00039999,31]
[341553232,1730976269299,-500.0,0.00039999,31]
[341553233,1730976269324,-500.0,0.00039999,31]
[341553234,1730976269349,-500.0,0.00039999,31]
[341553235,1730976269374,-195.01394874,0.00039999,31]
[341553236,1730976269400,-500.0,0.00039999,31]
[341553237,1730976269425,-500.0,0.00039999,31]
[341553238,1730976269449,-500.0,0.00039999,31]
[341553239,1730976269474,-500.0,0.00039999,31]
[341553240,1730976269498,-500.0,0.00039999,31]
[341553241,1730976269524,-500.0,0.00039999,31]
[341553242,1730976269548,-500.0,0.00039999,31]
[341553243,1730976269573,-500.0,0.00039999,31]
[341553244,1730976269598,-500.0,0.00039999,31]
[341553245,1730976269622,-500.0,0.00039999,31]
[341553246,1730976269647,-500.0,0.00039999,31]
[341553247,1730976269671,-350.0,0.00039999,31]
[341553248,1730976269702,-500.0,0.00039999,31]
[341553249,1730976269726,-500.0,0.00039999,31]
[341553250,1730976269751,-500.0,0.00039999,31]
[341553251,1730976269777,-450.0,0.00039999,31]
[341553252,1730976269803,-50000.0,0.0004,30]
[341553253,1730976269829,-900.0,0.0004,41]
[341553254,1730976269853,-837.33964386,0.0004,120]
[341553255,1730976269876,-1753.60801835,0.0004,120]
[341553256,1730976269899,-510.45103612,0.0004,120]
[341553257,1730976269923,-591.80747204,0.0004,120]
[341553258,1730976269949,-376.45954809,0.0004,30]
[341553259,1730976269973,-774.86107224,0.0004,120]
[341553260,1730976269997,-191.56619488,0.0004,30]
[341553261,1730976270020,-873.32504627,0.0004,30]
[341553262,1730976270044,-6392.3,0.0004,120]
[341553263,1730976270068,-2081.74,0.0004,120]
[341553264,1730976270092,-1058.23,0.0004,120]
[341553265,1730976270116,-386.0,0.0004,120]
[341553266,1730976270144,-250.0,0.0004,30]
[341553267,1730976270173,-151.0,0.00040027,120]
[341553268,1730976270197,-207.0,0.0004009,30]
[341553269,1730976270221,-241.5925737,0.0004011,30]
[341553270,1730976270245,-242.5,0.00040112,120]
[341553271,1730976270269,-150.0,0.00040136,30]
[341553272,1730976270293,-700.0,0.0004026,60]
[341553273,1730976270317,-1500.0,0.0004026,60]
[341553274,1730976270340,-204.22353207,0.00040273,30]
[341553275,1730976270365,-241.5925737,0.00040301,30]
[341553276,1730976270390,-2756.74,0.0004041,120]
[341553277,1730976270416,-218.13,0.00040467,120]
[341553278,1730976270440,-241.5925737,0.00040493,30]
[341553279,1730976270466,-158.642038,0.00040548,60]
[341553280,1730976270490,-241.5925737,0.00040685,30]
[341553281,1730976270517,-565.8,0.000407,31]
[341553282,1730976270542,-565.8,0.000407,31]
[341553283,1730976270567,-565.8,0.000407,31]
[341553284,1730976270593,-565.8,0.000407,31]
[341553285,1730976270618,-565.8,0.000407,31]
[341553286,1730976270643,-565.8,0.000407,31]
[341553287,1730976270670,-565.8,0.000407,31]
[341553288,1730976270697,-565.8,0.000407,31]
[341553289,1730976270722,-565.8,0.000407,31]
[341553290,1730976270749,-565.8,0.000407,31]
[341553291,1730976270774,-565.8,0.000407,31]
[341553292,1730976270800,-565.8,0.000407,31]
[341553293,1730976270825,-565.8,0.000407,31]
[341553294,1730976270850,-565.8,0.000407,31]
[341553295,1730976270876,-565.8,0.000407,31]
[341553296,1730976270900,-565.8,0.000407,31]
[341553297,1730976270925,-565.8,0.000407,31]
[341553298,1730976270952,-565.8,0.000407,31]
[341553299,1730976270978,-565.8,0.000407,31]
[341553300,1730976271004,-565.8,0.000407,31]
[341553301,1730976271031,-565.8,0.000407,31]
[341553302,1730976271057,-565.8,0.000407,31]
[341553303,1730976271083,-565.8,0.000407,31]
[341553304,1730976271108,-565.8,0.000407,31]
[341553305,1730976271133,-900.0,0.00040808,60]
[341553306,1730976271157,-503.94315126,0.00040808,60]
[341553307,1730976271187,-150.0,0.00040863,120]
[341553308,1730976271214,-241.5925737,0.00040877,30]
[341553309,1730976271238,-208.0,0.0004094,30]
[341553310,1730976271440,-314.26,0.00040975,49]
[341553311,1730976271466,-425.69,0.0004098,30]
[341553312,1730976271491,-258.92,0.0004098,120]
[341553313,1730976271515,-420.0,0.0004099,30]
[341553314,1730976271539,-255.0,0.0004099,120]
[341553315,1730976271565,-50000.0,0.00041,31]
[341553316,1730976271590,-900.0,0.00041,42]
[341553317,1730976271613,-786.9845025,0.00041,120]
[341553318,1730976271636,-452.999993,0.00041,120]
[341553319,1730976271659,-1003.44,0.00041035,49]
[341553320,1730976271683,-207.0,0.0004106,30]
[341553321,1730976271708,-241.5925737,0.00041068,30]
[341553322,1730976271733,-948.64842,0.00041088,30]
[341553323,1730976271759,-500.0,0.00041095,90]
[341553324,1730976271783,-500.0,0.00041095,93]
[341553325,1730976271808,-500.0,0.00041095,96]
[341553326,1730976271832,-500.0,0.00041095,99]
[341553327,1730976271855,-500.0,0.00041095,102]
[341553328,1730976271879,-500.0,0.00041095,105]
[341553329,1730976271903,-500.0,0.00041095,108]
[341553330,1730976271927,-500.0,0.00041095,111]
[341553331,1730976271950,-500.0,0.00041095,114]
[341553332,1730976271975,-500.0,0.00041095,117]
[341553333,1730976272000,-500.0,0.00041095,120]
[341553334,1730976272022,-500.0,0.00041095,120]
[341553335,1730976272046,-500.0,0.00041095,120]
[341553336,1730976272070,-500.0,0.00041095,120]
[341553337,1730976272097,-500.0,0.00041095,120]
[341553338,1730976272121,-500.0,0.00041095,120]
[341553339,1730976272145,-500.0,0.00041095,120]
[341553340,1730976272170,-500.0,0.00041095,120]
[341553341,1730976272193,-500.0,0.00041095,120]
[341553342,1730976272217,-262.85633465,0.00041095,120]
[341553343,1730976272242,-500.0,0.00041095,30]
[341553344,1730976272267,-599.0,0.00041095,120]
[341553345,1730976272291,-599.0,0.00041095,120]
[341553346,1730976272316,-599.0,0.00041095,120]
[341553347,1730976272341,-599.0,0.00041095,120]
[341553348,1730976272366,-599.0,0.00041095,120]
[341553349,1730976272391,-599.0,0.00041095,120]
[341553350,1730976272416,-599.0,0.00041095,120]
[341553351,1730976272440,-599.0,0.00041095,120]
[341553352,1730976272466,-599.0,0.00041095,120]
[341553353,1730976272489,-599.0,0.00041095,120]
[341553354,1730976272513,-599.0,0.00041095,120]
[341553355,1730976272537,-599.0,0.00041095,120]
[341553356,1730976272561,-599.0,0.00041095,120]
[341553357,1730976272586,-599.0,0.00041095,120]
[341553358,1730976272610,-599.0,0.00041095,120]
[341553359,1730976272635,-599.0,0.00041095,120]
[341553360,1730976272658,-599.0,0.00041095,120]
[341553361,1730976272681,-599.0,0.00041095,120]
[341553362,1730976272708,-599.0,0.00041095,120]
[341553363,1730976272732,-599.0,0.00041095,120]